bitfinex-derivatives/quotes_SOLF0:USTF0_20250528
["timestamp","ask_amount","ask_price","bid_price","bid_amount"]
[1748409623242,0.04339787,174.74,174.72,5.7205]
[1748409623641,5.76339787,174.74,174.72,5.7205]
[1748409624744,5.76339787,174.74,174.71,34.0608]
[1748409625036,5.76339787,174.74,174.71,28.34]
[1748409625936,5.76339787,174.74,174.72,5.7206]
[1748409626736,5.76339787,174.74,174.71,28.34]
[1748409626737,5.76339787,174.74,174.71,34.0608]
[1748409630543,5.7203,174.73,174.71,34.0608]
[1748409631447,5.7206,174.72,174.71,28.34]
[1748409632046,5.7204,174.73,174.71,34.0609]
[1748409634248,5.76349787,174.74,174.71,34.0609]
[1748409634449,5.76349787,174.74,174.72,5.7206]
[1748409635150,5.7203,174.73,174.71,34.0608]
[1748409635744,5.7203,174.73,174.71,28.34]
[1748409636852,5.7203,174.73,174.71,34.0608]
[1748409642355,5.7203,174.73,174.71,28.34]
[1748409643151,5.7203,174.73,174.71,34.0609]
[1748409644850,0.04339787,174.74,174.71,28.34]
[1748409644851,5.7206,174.72,174.71,28.34]
[1748409650060,5.7204,174.73,174.71,28.34]
[1748409651153,5.7206,174.72,174.71,28.34]
[1748409655866,5.7204,174.73,174.71,28.34]
[1748409656064,0.04339787,174.74,174.71,28.34]
[1748409656964,5.7205,174.73,174.71,28.34]
[1748409657756,5.76349787,174.74,174.71,28.34]
[1748409657961,0.04339787,174.74,174.71,32.5811347]
[1748409658168,0.04339787,174.74,174.71,32.58095841]
[1748409658562,0.04339787,174.74,174.72,5.7204]
[1748409659565,0.04339787,174.74,174.73,5.7203]
[1748409661164,146.36,174.79,174.75,5.7194]
[1748409661465,146.36,174.79,174.75,28.18]
[1748409661861,5.7189,174.78,174.75,33.8995]
[1748409662267,5.76201445,174.78,174.75,33.93592055]
[1748409662672,0.04311445,174.78,174.75,28.21642055]
[1748409663071,5.719,174.77,174.75,33.93592055]
[1748409663463,0.04311445,174.78,174.75,33.93592055]
[1748409664069,5.76181445,174.78,174.75,33.93592055]
[1748409665972,0.04311445,174.78,174.77,5.719]
[1748409666171,0.04311445,174.78,174.77,9.95995841]
[1748409666677,146.36,174.85,174.79,4.24095841]
[1748409666866,146.36,174.85,174.8,28.18]
[1748409667070,5.717,174.83,174.8,28.18]
[1748409667565,0.03795937,174.83,174.81,5.7175]
[1748409668176,5.75495937,174.83,174.81,5.7175]
[1748409668770,0.03795937,174.83,174.81,5.7175]
[1748409669373,0.03795937,174.83,174.82,5.7173]
[1748409671070,2.065,174.9,174.85,5.7162]
[1748409671276,5.7156,174.88,174.85,33.8162]
[1748409671480,4.24095841,174.91,174.85,28.1]
[1748409671668,4.24095841,174.92,174.87,5.7157]
[1748409671874,5.715,174.9,174.87,5.7157]
[1748409672175,5.75495756,174.9,174.87,5.75646421]
[1748409672572,5.7151,174.89,174.87,5.75646421]
[1748409672772,5.7151,174.89,174.87,0.04076421]
[1748409675277,5.7154,174.88,174.87,0.04076421]
[1748409675479,0.03995756,174.9,174.87,0.04076421]
[1748409676883,5.7151,174.89,174.87,0.04076421]
[1748409678785,5.7154,174.88,174.87,0.04076421]
[1748409680788,5.7154,174.88,174.87,0.04076421]
[1748409696090,9.95084634,174.88,174.87,0.04076421]
[1748409696297,5.7174,174.82,174.81,28.08]
[1748409708201,5.7176,174.81,174.8,0.04003476]
[1748409708803,5.7174,174.82,174.8,5.75803476]
[1748409709403,0.03998361,174.83,174.8,0.04003476]
[1748409710906,5.7176,174.81,174.8,0.04003476]
[1748409722612,5.7176,174.81,174.8,3.476e-05]
[1748409722814,5.7193,174.76,174.75,28.12]
[1748409723616,5.72,174.74,174.72,38.07937629]
[1748409726416,5.72,174.74,174.72,9.95937629]
[1748409726709,5.7203,174.73,174.72,28.12]
[1748409726914,0.04154511,174.75,174.72,28.12]
[1748409727912,5.72,174.74,174.72,33.8404]
[1748409728310,0.04154511,174.75,174.72,33.8404]
[1748409728517,5.76134511,174.75,174.73,5.7203]
[1748409730414,0.04154511,174.75,174.73,5.7203]
[1748409730717,0.04154511,174.75,174.72,32.35897629]
[1748409731318,0.04154511,174.75,174.74,5.7199]
[1748409741026,0.04154511,174.75,174.74,9.95887629]
[1748409742624,0.04154511,174.75,174.74,5.7199]
[1748409742826,0.04154511,174.75,174.73,115.4001]
[1748409743030,0.04154511,174.75,174.73,109.68]
[1748409743531,0.04154511,174.75,174.73,115.4002]
[1748409744026,0.04154511,174.75,174.72,5.7205]
[1748409744231,0.04154511,174.75,174.73,28.06]
[1748409744926,5.7199,174.74,174.73,28.06]
[1748409745633,5.7204,174.73,174.71,0.03719626]
[1748409746039,0.04154511,174.75,174.71,0.03719626]
[1748409747534,5.7205,174.73,174.71,0.03719626]
[1748409747836,0.04154511,174.75,174.71,0.03719626]
[1748409748038,5.7203,174.73,174.71,0.03719626]
[1748409748730,0.04154511,174.75,174.71,0.03719626]
[1748409749632,5.7206,174.72,174.71,0.03719626]
[1748409760047,5.7204,174.73,174.71,0.03719626]
[1748409762043,5.7204,174.73,174.71,5.75809626]
[1748409762244,5.7204,174.73,174.71,0.03719626]
[1748409762446,5.7206,174.72,174.71,0.03719626]
[1748409763150,5.7204,174.73,174.71,0.03719626]
[1748409763852,5.7206,174.72,174.71,0.03719626]
[1748409764453,5.7204,174.73,174.71,0.03719626]
[1748409765253,5.7206,174.72,174.71,0.03719626]
[1748409765555,1.8721,174.74,174.71,0.03719626]
[1748409766553,5.7203,174.73,174.71,0.03719626]
[1748409766949,1.8721,174.74,174.71,0.03719626]
[1748409766950,5.7206,174.72,174.71,0.03719626]
[1748409767253,1.8721,174.74,174.7,28.06]
[1748409767853,0.04154511,174.75,174.7,28.06]
[1748409768354,0.04154511,174.75,174.71,0.03821303]
[1748409769958,5.7206,174.72,174.71,0.03821303]
[1748409770159,5.7206,174.72,174.7,28.06]
[1748409771161,5.7209,174.71,174.7,28.06]
[1748409771353,0.04154511,174.75,174.7,33.7811]
[1748409771760,5.7205,174.73,174.7,33.7811]
[1748409772361,5.7207,174.72,174.7,33.7811]
[1748409773065,0.04154511,174.75,174.69,0.04201355]
[1748409774168,5.7212,174.71,174.69,0.04201355]
[1748409774462,0.04154511,174.75,174.69,0.04201355]
[1748409774858,5.7211,174.71,174.69,0.04201355]
[1748409775160,5.7211,174.71,174.69,5.76351355]
[1748409778164,1.9872,174.74,174.69,5.76351355]
[1748409778165,1.9872,174.74,174.69,0.04201355]
[1748409778367,0.04154511,174.75,174.69,0.04201355]
[1748409778664,5.76134511,174.75,174.73,5.7202]
[1748409778865,5.76134511,174.75,174.69,0.04201355]
[1748409778866,0.04154511,174.75,174.71,28.06]
[1748409779968,0.04154511,174.75,174.74,5.7199]
[1748409782069,1.8693,174.78,174.77,5.719]
[1748409782364,4.0909,174.81,174.77,28.06]
[1748409782667,1.8977,174.84,174.77,28.06]
[1748409783063,0.03697313,174.82,174.79,0.03762038]
[1748409783365,0.03697313,174.82,174.81,5.7176]
[1748409783568,0.03697313,174.82,174.81,33.7776]
[1748409790562,0.03697313,174.82,174.81,28.06]
[1748409793374,0.03697313,174.82,174.81,33.7776]
[1748409808290,0.03697313,174.82,174.81,28.06]
[1748409809185,5.75427313,174.82,174.81,28.06]
[1748409809590,0.03697313,174.82,174.81,28.06]
[1748409810488,0.03697313,174.82,174.81,33.7776]
[1748409810783,0.03697313,174.82,174.81,28.06]
[1748409811885,0.03697313,174.82,174.81,33.7776]
[1748409825392,5.7154,174.88,174.85,5.7162]
[1748409826291,5.7157,174.87,174.85,5.7529012]
[1748409827297,5.7157,174.87,174.85,0.0367012]
[1748409828297,0.03837477,174.88,174.85,0.0367012]
[1748409829106,5.7159,174.87,174.85,0.0367012]
[1748409829599,0.03837477,174.88,174.85,0.0367012]
[1748409829899,5.716,174.86,174.85,0.0367012]
[1748409831302,5.7158,174.87,174.85,0.0367012]
[1748409832905,5.716,174.86,174.85,0.0367012]
[1748409834104,5.7158,174.87,174.85,0.0367012]
[1748409836912,5.716,174.86,174.85,0.0367012]
[1748409839114,5.7158,174.87,174.85,0.0367012]
[1748409839908,0.03837477,174.88,174.85,0.0367012]
[1748409839909,5.716,174.86,174.85,0.0367012]
[1748409841205,0.03837477,174.88,174.85,0.0367012]
[1748409841813,5.716,174.86,174.85,0.0367012]
[1748409849120,9.95102459,174.87,174.85,0.0367012]
[1748409849621,5.7157,174.87,174.85,0.0367012]
[1748409850925,5.716,174.86,174.85,0.0367012]
[1748409883347,0.03837477,174.88,174.85,0.0367012]
[1748409884939,5.75397477,174.88,174.85,5.7529012]
[1748409885345,0.03837477,174.88,174.85,0.0367012]
[1748409885544,5.7159,174.87,174.85,0.0367012]
[1748409887240,0.03837477,174.88,174.85,0.0367012]
[1748409888145,5.7159,174.87,174.85,0.0367012]
[1748409889347,5.75377477,174.88,174.85,0.0367012]
[1748409889942,5.75377477,174.88,174.85,5.7529012]
[1748409892345,5.75377477,174.88,174.85,0.0367012]
[1748409892647,0.03837477,174.88,174.85,0.0367012]
[1748409893242,5.716,174.86,174.85,0.0367012]
[1748409893750,5.7158,174.87,174.85,0.0367012]
[1748409895751,5.7158,174.87,174.85,5.7530012]
[1748409899662,5.7158,174.87,174.85,0.0367012]
[1748409899856,5.716,174.86,174.85,0.0367012]
[1748409900949,5.7164,174.86,174.85,0.0367012]
[1748409922967,9.95172459,174.86,174.85,0.0367012]
[1748409926071,5.7164,174.86,174.85,0.0367012]
[1748409928278,5.7157,174.87,174.85,0.0367012]
[1748409933582,5.7157,174.87,174.85,5.7530012]
[1748409935983,5.75387477,174.88,174.85,5.7530012]
[1748409939888,5.7157,174.87,174.85,0.0367012]
[1748409941793,5.7157,174.87,174.85,5.7530012]
[1748409945701,5.7157,174.87,174.85,0.0367012]
[1748409946102,5.716,174.86,174.85,0.0367012]
[1748409947602,5.7158,174.87,174.85,0.0367012]
[1748409951907,5.7158,174.87,174.85,5.7530012]
[1748409952303,5.75387477,174.88,174.85,5.7530012]
[1748409953104,0.03837477,174.88,174.86,5.716]
[1748409956113,0.03837477,174.88,174.87,5.7157]
[1748409958414,0.03837477,174.88,174.87,9.95102459]
[1748409959818,0.03837477,174.88,174.87,4.23532459]
[1748409960014,0.03837477,174.88,174.85,0.0367012]
[1748409960414,5.7159,174.87,174.85,0.0367012]
[1748409960717,0.03837477,174.88,174.85,0.0367012]
[1748409961314,5.75407477,174.88,174.85,5.7530012]
[1748409961921,5.75407477,174.88,174.85,0.0367012]
[1748409962311,0.03837477,174.88,174.85,0.0367012]
[1748409962621,4.23532459,174.87,174.85,0.0367012]
[1748409962817,5.716,174.86,174.85,0.0367012]
[1748409963924,5.7158,174.87,174.85,0.0367012]
[1748409964317,5.75387477,174.88,174.85,5.7530012]
[1748409964518,0.03837477,174.88,174.85,5.7530012]
[1748409965922,5.7157,174.87,174.85,5.7530012]
[1748409966920,5.7157,174.87,174.85,0.0367012]
[1748409967123,5.75387477,174.88,174.85,0.0367012]
[1748409968123,5.716,174.87,174.85,0.0367012]
[1748409969522,5.716,174.86,174.85,0.0367012]
[1748409970723,0.03837477,174.88,174.85,0.0367012]
[1748409970926,5.7158,174.87,174.85,0.0367012]
[1748409973031,5.716,174.86,174.85,0.0367012]
[1748409978733,5.7158,174.87,174.85,0.0367012]
[1748409980827,5.716,174.86,174.85,0.0367012]
[1748409981337,5.7158,174.87,174.85,0.0367012]
[1748409982838,5.7158,174.87,174.85,5.7530012]
[1748409983537,5.75387477,174.88,174.85,5.7530012]
[1748409985739,5.7157,174.87,174.85,0.0367012]
[1748409986144,0.03837477,174.88,174.85,0.0367012]
[1748409986336,5.716,174.86,174.85,0.0367012]
[1748409999540,5.7174,174.82,174.79,4.23532459]
[1748409999747,5.7174,174.82,174.8,28.02]
[1748410000242,5.7171,174.83,174.8,28.02]
[1748410000644,5.75980112,174.83,174.8,28.06389214]
[1748410000844,5.75980112,174.83,174.81,5.7176]
[1748410001246,5.75980112,174.83,174.8,28.06389214]
[1748410001446,5.75980112,174.83,174.81,5.7176]
[1748410001641,0.04270112,174.83,174.81,5.7176]
[1748410002951,5.75970112,174.83,174.81,5.7176]
[1748410003946,5.75970112,174.83,174.8,33.78169214]
[1748410004955,5.7173,174.82,174.8,33.78169214]
[1748410005353,5.7173,174.82,174.8,28.06389214]
[1748410005755,5.7177,174.81,174.8,28.06389214]
[1748410005948,5.7177,174.81,174.8,0.04389214]
[1748410010254,0.04270112,174.83,174.8,0.04389214]
[1748410010858,0.04270112,174.83,174.81,5.7176]
[1748410011859,5.75990112,174.83,174.8,5.76179214]
[1748410013071,5.7174,174.82,174.8,5.76179214]
[1748410015178,5.7174,174.82,174.8,0.04389214]
[1748410019579,5.7174,174.82,174.8,5.76179214]
[1748410021383,5.7174,174.82,174.8,0.04389214]
[1748410021871,5.7177,174.81,174.8,0.04389214]
[1748410024981,5.7175,174.82,174.8,0.04389214]
[1748410025982,5.7175,174.82,174.8,5.76179214]
[1748410027082,5.75980112,174.83,174.8,5.76179214]
[1748410028792,0.04270112,174.83,174.81,5.7177]
[1748410029881,0.04270112,174.83,174.82,5.7173]
[1748410030285,0.04270112,174.83,174.8,4.27921673]
[1748410030688,0.04270112,174.83,174.8,0.04389214]
[1748410031285,5.7174,174.82,174.8,0.04389214]
[1748410032887,5.75980112,174.83,174.8,5.76179214]
[1748410034088,0.04270112,174.83,174.81,5.7176]
[1748410036688,5.75970112,174.83,174.81,5.7176]
[1748410037584,5.75970112,174.83,174.8,5.76179214]
[1748410039596,5.7174,174.82,174.8,5.76179214]
[1748410041597,5.75990112,174.83,174.81,5.7177]
[1748410042196,0.04270112,174.83,174.81,5.7177]
[1748410043497,5.75970112,174.83,174.81,5.7177]
[1748410044287,0.04270112,174.83,174.82,5.7173]
[1748410044898,0.04270112,174.83,174.82,9.95262459]
[1748410045697,4.23532459,174.9,174.82,4.23532459]
[1748410046088,4.23532459,174.9,174.84,4.23532459]
[1748410046801,5.7156,174.88,174.85,0.04349671]
[1748410047295,5.75670931,174.89,174.86,5.716]
[1748410047496,5.75670931,174.89,174.86,9.95132459]
[1748410050203,0.04150931,174.89,174.87,5.7156]
[1748410050702,5.75660931,174.89,174.86,4.23532459]
[1748410050997,5.75660931,174.89,174.86,9.95112459]
[1748410052697,0.04150931,174.89,174.87,5.7156]
[1748410056104,0.04150931,174.89,174.88,5.7154]
[1748410071511,0.04150931,174.89,174.88,9.95072459]
[1748410084937,0.04150931,174.89,174.88,5.7154]
[1748410085130,0.04150931,174.89,174.88,9.95072459]
[1748410089031,0.04150931,174.89,174.88,37.93072459]
[1748410095026,0.04150931,174.89,174.88,33.6954]
[1748410097637,0.04150931,174.89,174.88,27.98]
[1748410098332,0.04150931,174.89,174.88,33.6954]
[1748410098835,0.04150931,174.89,174.85,0.04349671]
[1748410099025,2.06250931,174.89,174.85,0.04349671]
[1748410099434,2.06250931,174.89,174.87,5.7155]
[1748410099638,2.06250931,174.89,174.85,0.04349671]
[1748410099838,2.06250931,174.89,174.87,5.7155]
[1748410100039,0.04150931,174.89,174.86,4.23532459]
[1748410100534,0.04150931,174.89,174.88,5.7154]
[1748410108838,0.04150931,174.89,174.88,9.95072459]
[1748410115839,9.31e-06,174.89,174.88,9.95072459]
[1748410116840,9.31e-06,174.89,174.88,5.7154]
[1748410117045,9.31e-06,174.89,174.88,9.95072459]
[1748410132552,9.31e-06,174.89,174.88,5.7154]
[1748410132950,9.31e-06,174.89,174.88,9.95072459]
[1748410148271,9.31e-06,174.89,174.88,37.91072459]
[1748410153171,9.31e-06,174.89,174.88,33.6754]
[1748410153372,9.31e-06,174.89,174.85,0.04349671]
[1748410153373,9.31e-06,174.89,174.85,28.00349671]
[1748410153767,5.71520931,174.89,174.86,5.7157]
[1748410153962,9.31e-06,174.89,174.86,5.7157]
[1748410154169,1.99420931,174.89,174.86,5.7157]
[1748410154875,5.7154,174.88,174.86,5.7157]
[1748410155173,1.99420931,174.89,174.86,5.7157]
[1748410155763,5.7156,174.88,174.85,33.71969671]
[1748410157676,1.99420931,174.89,174.85,28.00349671]
[1748410157677,5.7157,174.87,174.85,28.00349671]
[1748410158977,5.7157,174.87,174.85,33.71979671]
[1748410159974,5.7157,174.87,174.85,28.00349671]
[1748410160271,5.716,174.86,174.85,28.00349671]
[1748410160677,5.716,174.86,174.85,0.04349671]
[1748410162871,5.7158,174.87,174.85,0.04349671]
[1748410165075,5.7158,174.87,174.85,5.75979671]
[1748410166079,5.7158,174.87,174.85,0.04349671]
[1748410166278,4.23532459,174.88,174.85,0.04349671]
[1748410166783,9.95132459,174.86,174.85,0.04349671]
[1748410167783,4.23532459,174.86,174.85,0.04349671]
[1748410168187,4.23532459,174.88,174.86,5.716]
[1748410169889,4.23532459,174.88,174.85,0.04349671]
[1748410170282,9.95072459,174.88,174.85,0.04349671]
[1748410171998,9.95072459,174.88,174.86,5.7159]
[1748410175595,4.23532459,174.88,174.86,5.7159]
[1748410175794,4.23532459,174.88,174.87,5.7157]
[1748410175991,9.95072459,174.88,174.85,0.04349671]
[1748410176186,9.95072459,174.88,174.86,5.7158]
[1748410176785,11.9447339,174.89,174.86,5.7158]
[1748410178086,5.7154,174.88,174.86,5.7158]
[1748410178293,5.7154,174.88,174.85,5.75969671]
[1748410178896,5.7158,174.87,174.85,5.75969671]
[1748410181700,5.7156,174.88,174.85,5.75969671]
[1748410182102,6.2295339,174.89,174.85,5.75969671]
[1748410182602,5.7154,174.88,174.85,5.75969671]
[1748410183004,5.7157,174.87,174.85,5.75969671]
[1748410183698,5.7157,174.87,174.85,0.04349671]
[1748410185104,5.716,174.86,174.85,0.04349671]
[1748410190102,9.31e-06,174.89,174.85,0.04349671]
[1748410191406,5.7154,174.88,174.85,0.04349671]
[1748410191603,9.31e-06,174.89,174.85,0.04349671]
[1748410191911,5.716,174.86,174.85,0.04349671]
[1748410197207,5.7158,174.87,174.85,0.04349671]
[1748410199814,5.7158,174.87,174.85,5.75979671]
[1748410200713,5.7155,174.88,174.86,5.716]
[1748410203722,5.7154,174.88,174.86,5.716]
[1748410206921,5.7154,174.88,174.85,5.75969671]
[1748410207320,5.7157,174.87,174.85,5.75969671]
[1748410212024,5.716,174.86,174.85,0.04349671]
[1748410212932,5.7158,174.87,174.85,0.04349671]
[1748410213321,4.23532459,174.88,174.85,0.04349671]
[1748410213731,5.716,174.86,174.85,0.04349671]
[1748410218626,9.95132459,174.86,174.85,0.04349671]
[1748410228946,5.7159,174.87,174.85,0.04349671]
[1748410229142,6.2304339,174.89,174.85,0.04349671]
[1748410229346,1.99510931,174.89,174.85,0.04349671]
[1748410229547,5.7159,174.87,174.85,0.04349671]
[1748410230746,5.716,174.86,174.85,0.04349671]
[1748410232944,5.7158,174.87,174.85,0.04349671]
[1748410233450,9.95112459,174.87,174.85,0.04349671]
[1748410234650,9.95112459,174.87,174.85,5.75969671]
[1748410235354,4.23532459,174.87,174.85,5.75969671]
[1748410236444,9.95102459,174.87,174.85,5.75969671]
[1748410236951,4.23532459,174.87,174.85,5.75969671]
[1748410238950,9.95102459,174.87,174.85,5.75969671]
[1748410241555,4.23532459,174.87,174.85,5.75969671]
[1748410242553,9.95102459,174.87,174.85,5.75969671]
[1748410243356,9.31e-06,174.89,174.85,0.04349671]
[1748410243556,4.2353339,174.89,174.85,0.04349671]
[1748410243757,9.31e-06,174.89,174.87,5.7154]
[1748410246663,9.31e-06,174.89,174.85,0.04349671]
[1748410247163,9.31e-06,174.89,174.88,5.7154]
[1748410251965,9.31e-06,174.89,174.88,119.43072459]
[1748410252963,9.31e-06,174.89,174.88,121.34662459]
[1748410260075,4.23532459,175.02,174.88,121.35122459]
[1748410260271,4.23532459,175.02,174.95,4.23532459]
[1748410260471,5.7113,175.01,174.98,5.7118]
[1748410260676,4.23532459,175.03,174.97,4.23532459]
[1748410260878,0.04039824,175.02,174.98,0.04235282]
[1748410261080,0.04039824,175.02,174.99,5.7115]
[1748410261374,5.75119824,175.02,174.98,0.04235282]
[1748410262369,0.04039824,175.02,174.98,0.04235282]
[1748410263384,5.75149824,175.02,174.98,0.04235282]
[1748410263578,0.04039824,175.02,174.98,0.04235282]
[1748410264587,0.04039824,175.02,174.99,4.23532459]
[1748410264885,0.04039824,175.02,175.0,27.96]
[1748410265887,0.04039824,175.02,175.0,33.6713]
[1748410266088,0.04039824,175.02,175.01,4.23532459]
[1748410266488,0.04039824,175.02,175.0,27.96]
[1748410267185,5.75129824,175.02,175.0,27.96]
[1748410270577,0.04039824,175.02,175.0,32.19532459]
[1748410271291,0.04039824,175.02,174.99,4.23532459]
[1748410271487,0.04039824,175.02,175.0,137.38]
[1748410272486,0.04039824,175.02,175.0,33.6513]
[1748410273088,0.04039824,175.02,175.0,27.94]
[1748410273282,4.23532459,175.01,174.98,0.04235282]
[1748410273485,9.94712459,174.99,174.98,0.04235282]
[1748410273884,4.23532459,174.99,174.93,27.94]
[1748410274685,5.7125,174.97,174.93,27.94]
[1748410274890,0.03831892,174.97,174.93,27.98329096]
[1748410276793,0.03831892,174.97,174.95,5.7129]
[1748410277592,0.03831892,174.97,174.96,5.7127]
[1748410290506,0.03831892,174.97,174.95,5.713]
[1748410291106,0.03831892,174.97,174.96,5.7127]
[1748410299303,1.892e-05,174.97,174.96,5.7127]
[1748410300304,1.892e-05,174.97,174.96,7.689]
[1748410307016,5.7102,175.04,175.01,5.7108]
[1748410307214,146.36,175.05,175.01,27.96]
[1748410307610,146.36,175.05,175.02,5.7107]
[1748410308014,146.36,175.05,175.02,5.74743655]
[1748410308315,146.40152941,175.05,175.02,5.74743655]
[1748410308514,152.11132941,175.05,175.02,5.74743655]
[1748410308818,146.40152941,175.05,175.02,0.03673655]
[1748410309417,152.11142941,175.05,175.02,5.74733655]
[1748410310315,146.40152941,175.05,175.03,5.7103]
[1748410310515,0.04152941,175.05,175.02,0.03673655]
[1748410311923,0.04152941,175.05,175.03,5.7103]
[1748410317928,0.04152941,175.05,175.04,5.7101]
[1748410318319,0.04152941,175.05,175.02,0.03673655]
[1748410318519,0.04152941,175.05,175.03,5.7104]
[1748410320926,0.04152941,175.05,175.04,5.7101]
[1748410323233,0.04152941,175.05,175.03,5.7103]
[1748410323828,5.75142941,175.05,175.02,5.74733655]
[1748410325032,0.04152941,175.05,175.03,5.7104]
[1748410332240,0.04152941,175.05,175.04,5.7101]
[1748410346742,0.04152941,175.05,175.02,109.39673655]
[1748410346942,0.04152941,175.05,175.02,0.03673655]
[1748410348048,5.7103,175.04,175.02,5.74753655]
[1748410348252,0.04152941,175.05,175.02,5.74753655]
[1748410348556,5.75152941,175.05,175.02,5.74753655]
[1748410349054,5.75152941,175.05,175.03,5.7105]
[1748410350355,5.75152941,175.05,175.02,5.74743655]
[1748410350551,4.26862385,175.05,175.02,0.03673655]
[1748410352552,4.22709444,175.03,174.98,27.94]
[1748410352750,4.22709444,175.01,174.95,137.3]
[1748410353142,4.22709444,174.99,174.95,27.94]
[1748410353442,4.22709444,174.99,174.95,27.98296278]
[1748410353752,4.26365337,174.99,174.95,0.04296278]
[1748410354355,5.7125,174.97,174.95,0.04296278]
[1748410355352,5.7122,174.98,174.95,0.04296278]
[1748410355556,5.7122,174.98,174.95,5.75586278]
[1748410357852,5.7122,174.98,174.96,5.7127]
[1748410358155,5.74845893,174.99,174.96,5.7127]
[1748410358655,5.7121,174.98,174.96,5.7127]
[1748410359359,5.74845893,174.99,174.96,5.7127]
[1748410361462,5.74845893,174.99,174.95,5.75596278]
[1748410363352,5.7122,174.98,174.95,5.75596278]
[1748410365261,0.03655893,174.99,174.95,0.04296278]
[1748410365959,5.7127,174.97,174.95,0.04296278]
[1748410367654,5.7127,174.96,174.95,0.04296278]
[1748410368253,5.7126,174.97,174.95,0.04296278]
[1748410368962,5.7127,174.96,174.95,0.04296278]
[1748410371669,5.7126,174.97,174.95,0.04296278]
[1748410379966,0.03655893,174.99,174.95,0.04296278]
[1748410380368,0.03655893,174.99,174.98,5.7121]
[1748410381367,146.36,175.05,174.98,27.96]
[1748410381569,4.23069805,175.07,174.99,113.65069805]
[1748410382373,5.74918301,175.05,175.02,5.7105]
[1748410382770,5.74918301,175.05,175.01,0.03835762]
[1748410383369,5.74918301,175.05,175.02,5.7107]
[1748410388875,0.03928301,175.05,175.03,5.7103]
[1748410389270,0.03928301,175.05,175.01,4.26905567]
[1748410389471,0.03928301,175.05,175.02,27.94]
[1748410390880,0.03928301,175.05,175.04,5.7101]
[1748410395985,0.03928301,175.05,175.02,27.94]
[1748410396483,5.74918301,175.05,175.02,27.94]
[1748410397682,5.74918301,175.05,175.03,5.7103]
[1748410398881,5.74918301,175.05,175.02,33.6506]
[1748410399374,5.74918301,175.05,175.02,27.94]
[1748410399781,5.74918301,175.05,175.03,5.7104]
[1748410404283,5.74918301,175.05,175.02,27.94]
[1748410404284,0.03928301,175.05,175.04,5.7101]
[1748410407484,0.03928301,175.05,175.02,27.94]
[1748410408394,5.74918301,175.05,175.03,5.7103]
[1748410409291,0.03928301,175.05,175.04,5.7101]
[1748410409497,0.03928301,175.05,175.02,27.94]
[1748410410192,0.03928301,175.05,175.03,5.7103]
[1748410410597,0.03928301,175.05,175.04,5.7101]
[1748410411395,0.03928301,175.05,175.02,27.94]
[1748410411396,0.03928301,175.05,175.03,5.7103]
[1748410411895,0.03928301,175.05,175.02,27.94]
[1748410412494,0.03928301,175.05,175.03,5.7105]
[1748410412699,5.74908301,175.05,175.03,5.7105]
[1748410413295,0.03928301,175.05,175.04,5.7101]
[1748410413897,0.03928301,175.05,175.03,5.7104]
[1748410415200,0.03928301,175.05,175.04,5.7101]
[1748410437518,0.03928301,175.05,175.02,32.1659293]
[1748410437721,0.03928301,175.05,175.01,0.03835762]
[1748410437722,4.2259293,175.04,175.01,0.03835762]
[1748410438928,5.7108,175.02,175.01,0.03835762]
[1748410440525,5.7106,175.03,175.01,0.03835762]
[1748410440729,0.03928301,175.05,175.01,0.03835762]
[1748410441232,5.74918301,175.05,175.01,0.03835762]
[1748410441625,5.74918301,175.05,175.02,5.7106]
[1748410442129,5.74918301,175.05,175.01,27.97835762]
[1748410442328,0.03928301,175.05,175.03,5.7103]
[1748410443232,5.74918301,175.05,175.03,5.7103]
[1748410443834,0.03928301,175.05,175.04,5.7101]
[1748410445034,5.74908301,175.05,175.03,5.7103]
[1748410445331,0.03928301,175.05,175.03,5.7103]
[1748410446630,0.03928301,175.05,175.04,5.7101]
[1748410455830,0.03928301,175.05,175.04,115.0701]
[1748410457343,0.03928301,175.05,175.04,143.0101]
[1748410460547,0.03928301,175.05,175.04,109.36]
[1748410461742,0.03928301,175.05,175.04,115.0701]
[1748410462344,0.03928301,175.05,175.04,109.36]
[1748410463854,5.74908301,175.05,175.04,109.36]
[1748410464258,5.74908301,175.05,175.01,32.20464297]
[1748410464451,5.74908301,175.05,175.03,5.7104]
[1748410466462,0.03928301,175.05,175.03,5.7104]
[1748410466857,0.03928301,175.05,175.04,5.7101]